bitfinex/quotes_SOLUSD_20260306
["timestamp","ask_amount","ask_price","bid_price","bid_amount"]
[1772821092630,0.09499727,84.81,84.758,0.4561825]
[1772821093408,11.79273096,84.798,84.758,0.4561825]
[1772821093734,0.09499727,84.797,84.758,0.4561825]
[1772821094812,0.09499727,84.797,84.76,0.4561825]
[1772821095242,41.27455836,84.798,84.76,0.4561825]
[1772821095527,11.79273096,84.798,84.76,0.4561825]
[1772821096024,0.09499727,84.813,84.76,0.4561825]
[1772821096231,29.47833549,84.809,84.76,0.4561825]
[1772821096438,11.88772823,84.798,84.76,0.4561825]
[1772821096940,11.88772823,84.798,84.762,0.4561825]
[1772821097507,11.79273096,84.798,84.762,0.4561825]
[1772821099036,11.88772823,84.798,84.763,11.79760036]
[1772821099223,11.88772823,84.798,84.764,0.4561825]
[1772821099823,11.79273096,84.798,84.764,0.4561825]
[1772821100332,0.69599997,84.799,84.764,0.4561825]
[1772821101134,0.69599997,84.799,84.766,0.4561825]
[1772821101931,0.69599997,84.799,84.768,0.4561825]
[1772821103113,0.69599997,84.799,84.77,0.4561825]
[1772821103737,11.79131618,84.809,84.77,0.4561825]
[1772821104119,0.09499727,84.808,84.77,0.4561825]
[1772821105327,0.09499727,84.808,84.77,29.49156541]
[1772821105524,0.09499727,84.808,84.771,0.4561825]
[1772821106323,0.09499727,84.789,84.751,0.4561825]
[1772821107827,11.79341037,84.794,84.753,0.4561825]
[1772821108227,11.79341037,84.794,84.754,0.14216157]
[1772821108431,0.09499727,84.82,84.759,0.4561825]
[1772821108739,0.09499727,84.819,84.767,0.4561825]
[1772821109742,0.09499727,84.819,84.752,147.48914477]
[1772821109743,0.09499727,84.828,84.775,0.4561825]
[1772821109935,0.09499727,84.828,84.777,0.4561825]
[1772821112346,0.09499727,84.828,84.779,0.46525672]
[1772821114546,0.09499727,84.828,84.781,0.46525672]
[1772821116239,0.09499727,84.828,84.783,0.46525672]
[1772821116443,11.78842141,84.829,84.787,0.46525672]
[1772821116624,0.1,84.83,84.789,0.46525672]
[1772821118041,0.19499727,84.83,84.789,0.46525672]
[1772821118826,0.19499727,84.83,84.779,0.14216157]
[1772821118827,0.09499727,84.828,84.791,0.46525672]
[1772821119074,0.09499727,84.819,84.791,0.46525672]
[1772821119946,0.09499727,84.808,84.761,0.46525672]
[1772821120251,0.09499727,84.809,84.767,0.46525672]
[1772821120832,0.09499727,84.808,84.769,0.46525672]
[1772821121046,4.36866987,84.8,84.769,0.46525672]
[1772821121250,0.09499727,84.799,84.769,0.46525672]
[1772821122155,0.09499727,84.799,84.76,0.46525672]
[1772821122345,0.09499727,84.789,84.76,0.46525672]
[1772821122951,0.09499727,84.789,84.761,12.26313546]
[1772821123141,11.79259189,84.799,84.762,0.46525672]
[1772821124538,33.84646352,84.81,84.762,0.46525672]
[1772821124539,0.09499727,84.804,84.762,0.46525672]
[1772821124852,0.09499727,84.835,84.773,0.46525672]
[1772821125155,0.09499727,84.843,84.778,0.14216157]
[1772821125352,11.78828066,84.831,84.787,0.46525672]
[1772821126589,11.78828066,84.831,84.789,0.46525672]
[1772821127063,11.78856038,84.828,84.789,0.46525672]
[1772821129240,11.78856038,84.828,84.791,0.46525672]
[1772821130349,0.09499727,84.819,84.783,0.46525672]
[1772821130555,0.09499727,84.819,84.783,12.25997519]
[1772821130755,10.91466503,84.82,84.784,0.46525672]
[1772821131046,0.09499727,84.827,84.784,0.46525672]
[1772821131247,10.91466503,84.82,84.786,0.46525672]
[1772821131448,0.09499727,84.819,84.786,0.46525672]
[1772821131963,0.09499727,84.826,84.786,0.46525672]
[1772821133742,41.25996133,84.828,84.788,0.46525672]
[1772821134058,0.09499727,84.827,84.788,0.46525672]
[1772821135562,41.25996133,84.828,84.788,0.46525672]
[1772821135969,0.09499727,84.819,84.79,0.47723713]
[1772821136274,0.09499727,84.819,84.72,47.2140441]
[1772821136275,0.09499727,84.819,84.784,11.7946001]
[1772821136761,0.09499727,84.819,84.784,12.27183723]
[1772821137472,0.09499727,84.825,84.785,0.47723713]
[1772821137849,0.09499727,84.819,84.785,0.47723713]
[1772821138168,0.09499727,84.818,84.785,0.47723713]
[1772821138769,0.09499727,84.809,84.778,0.47723713]
[1772821139272,0.09499727,84.809,84.771,11.79640112]
[1772821139458,0.09499727,84.809,84.772,0.47723713]
[1772821140165,0.09499727,84.808,84.772,0.47723713]
[1772821140763,0.09499727,84.779,84.745,0.47723713]
[1772821140967,10.91466503,84.78,84.745,0.47723713]
[1772821141156,0.28432314,84.799,84.745,0.47723713]
[1772821141357,10.91466503,84.79,84.745,0.47723713]
[1772821142259,10.91466503,84.78,84.747,0.5]
[1772821142460,10.93093882,84.78,84.747,0.5]
[1772821142770,41.27893948,84.789,84.747,0.5]
[1772821144074,11.79398271,84.789,84.747,0.5]
[1772821144264,41.27893948,84.789,84.749,0.5]
[1772821145364,10.93093882,84.78,84.749,0.5]
[1772821145872,41.27893948,84.789,84.749,0.5]
[1772821146558,4.37214927,84.79,84.751,0.5]
[1772821146760,4.37214927,84.78,84.751,0.5]
[1772821146956,4.37214927,84.76,84.733,0.5]
[1772821147356,4.37214927,84.76,84.733,12.30167643]
[1772821147980,4.37214927,84.76,84.729,11.80223973]
[1772821148362,4.37214927,84.75,84.725,11.80287524]
[1772821148673,4.37214927,84.75,84.72,0.5]
[1772821149117,4.37214927,84.76,84.72,0.5]
[1772821149275,4.37214927,84.76,84.719,11.80372761]
[1772821149276,0.14216157,84.773,84.722,0.5]
[1772821149469,5.2512604,84.769,84.722,0.5]
[1772821149863,4.82477569,84.789,84.722,0.5]
[1772821150057,4.82477569,84.789,84.72,0.28432314]
[1772821150058,4.82477569,84.789,84.728,0.5]
[1772821150261,4.37214927,84.78,84.728,0.5]
[1772821150666,41.28380848,84.779,84.73,0.5]
[1772821151566,11.79537385,84.779,84.73,0.5]
[1772821151762,11.79481695,84.784,84.732,0.5]
[1772821152280,11.79481695,84.784,84.738,0.5]
[1772821152673,11.79481695,84.784,84.74,0.5]
[1772821155986,41.27893948,84.789,84.742,0.5]
[1772821156488,4.37214927,84.77,84.741,11.80066319]
[1772821156684,4.37214927,84.77,84.734,0.5]
[1772821157584,4.37214927,84.77,84.709,0.14216157]
[1772821157585,4.37214927,84.77,84.736,0.5]
[1772821157887,0.14216157,84.787,84.736,0.5]
[1772821158095,0.28432314,84.778,84.738,0.5]
[1772821158389,41.27991319,84.787,84.738,0.5]
[1772821159280,11.79426091,84.787,84.738,0.5]
[1772821159898,4.37214927,84.78,84.738,0.5]
[1772821160098,11.79676532,84.769,84.739,12.30094171]
[1772821160382,41.28867863,84.769,84.739,12.30094171]
[1772821160964,4.37214927,84.78,84.74,0.5]
[1772821161603,4.37214927,84.77,84.74,0.5]
[1772821162191,4.37214927,84.78,84.742,0.5]
[1772821162774,4.37214927,84.76,84.731,11.80192252]
[1772821162997,4.37214927,84.76,84.731,0.5]
[1772821163293,5.2512604,84.779,84.733,0.5]
[1772821163486,4.37214927,84.76,84.733,0.5]
[1772821163793,29.4856991,84.787,84.733,0.5]
[1772821163971,4.37214927,84.77,84.733,0.5]
[1772821164788,11.79676532,84.769,84.735,0.5]
[1772821166075,4.37214927,84.75,84.726,11.8026495]
[1772821167090,11.79954925,84.749,84.725,0.5]
[1772821167485,11.79885206,84.755,84.727,0.5]
[1772821168176,4.37214927,84.75,84.727,0.5]
[1772821168379,4.37214927,84.76,84.727,0.5]
[1772821169593,4.37214927,84.75,84.722,11.80323265]
[1772821169790,41.29354993,84.759,84.723,0.5]
[1772821170793,41.29354993,84.759,84.725,0.5]
[1772821171095,4.37214927,84.75,84.725,0.5]
[1772821171397,41.29354993,84.759,84.725,0.5]
[1772821172190,11.79815712,84.759,84.725,0.5]
[1772821172796,11.79690449,84.768,84.725,0.5]
[1772821172990,11.79690449,84.768,84.727,0.5]
[1772821173406,11.79551298,84.778,84.727,0.5]
[1772821174804,1.89839994,84.787,84.731,0.5]
[1772821175000,1.89839994,84.787,84.721,47.21341975]
[1772821175001,13.69268679,84.787,84.736,0.5]
[1772821175206,4.37214927,84.77,84.736,0.5]
[1772821175701,4.37214927,84.78,84.736,0.5]
[1772821176377,4.37214927,84.77,84.737,11.80122024]
[1772821176586,4.37214927,84.77,84.738,0.5]
[1772821176781,43.17833907,84.787,84.731,0.5]
[1772821176782,4.37214927,84.76,84.731,0.5]
[1772821176990,4.37214927,84.76,84.699,0.5]
[1772821177190,5.10909883,84.779,84.699,0.5]
[1772821177489,5.10909883,84.779,84.7,0.5]
[1772821177694,5.10909883,84.779,84.704,0.5]
[1772821177897,5.10909883,84.779,84.706,0.5]
[1772821178229,5.10909883,84.779,84.716,0.5]
[1772821178515,11.79551298,84.778,84.718,0.5]
[1772821178725,4.82477569,84.777,84.72,0.5]
[1772821179718,4.37214927,84.77,84.72,0.5]
[1772821181023,11.79676532,84.769,84.722,0.5]
[1772821182890,41.28867863,84.769,84.722,0.5]
[1772821183095,11.79815712,84.759,84.724,0.5]
[1772821183291,41.29354993,84.759,84.724,0.5]
[1772821183497,4.37214927,84.75,84.719,0.5]
[1772821184509,11.79815712,84.759,84.719,0.5]
[1772821185502,4.37214927,84.75,84.721,0.5]
[1772821185700,4.37214927,84.74,84.72,11.80358829]
[1772821185920,41.29354993,84.759,84.721,0.5]
[1772821186403,11.79815712,84.759,84.721,0.5]
[1772821187192,11.79676532,84.769,84.721,0.5]
[1772821187520,11.79537385,84.779,84.726,0.5]
[1772821187693,11.79537385,84.779,84.728,0.5]
[1772821188802,4.37214927,84.78,84.73,0.5]
[1772821190303,4.37214927,84.76,84.73,0.5]
[1772821190707,16.17025937,84.76,84.732,0.5]
[1772821190911,11.7981101,84.76,84.732,0.5]
[1772821191926,16.17025937,84.76,84.732,0.5]
[1772821194154,4.37214927,84.77,84.733,11.80177734]
[1772821194302,4.37214927,84.77,84.734,0.5]
[1772821194506,11.79551298,84.778,84.734,0.5]
[1772821196523,4.37214927,84.77,84.736,0.5]
[1772821197224,4.37214927,84.76,84.723,0.5]
[1772821199008,11.79800173,84.761,84.724,41.31060855]
[1772821199310,11.79800173,84.761,84.725,0.5]
[1772821200431,29.48878246,84.778,84.725,0.5]
[1772821200432,16.1688547,84.77,84.725,0.5]
[1772821201025,4.37214927,84.76,84.725,0.5]
[1772821201210,11.79815712,84.759,84.727,0.5]
[1772821201613,47.15466825,84.828,84.727,0.5]
[1772821201831,4.82477569,84.789,84.727,0.5]
[1772821202029,0.28432314,84.788,84.727,0.5]
[1772821202233,4.37214927,84.78,84.727,0.5]
[1772821202732,41.27455836,84.798,84.735,0.5]
[1772821202733,11.79273096,84.798,84.735,0.5]
[1772821202914,11.79273096,84.798,84.747,0.5]
[1772821203528,11.79273096,84.798,84.749,0.5]
[1772821204524,41.27455836,84.798,84.749,0.5]
[1772821204830,4.37026735,84.79,84.749,0.5]
[1772821205035,4.37026735,84.78,84.749,0.5]
[1772821205534,11.79273096,84.798,84.751,0.5]
[1772821206424,4.37026735,84.79,84.751,0.5]
[1772821206735,11.79273096,84.798,84.751,0.5]
[1772821207522,11.79273096,84.798,84.753,0.5]
[1772821208325,4.37026735,84.79,84.753,0.5]
[1772821208525,41.27455836,84.798,84.753,0.5]
[1772821209029,11.79273096,84.798,84.753,0.5]
[1772821209741,11.79273096,84.798,84.755,0.5]
[1772821210330,41.27455836,84.798,84.755,0.5]
[1772821210525,4.37026735,84.79,84.755,0.5]
[1772821213335,41.27893948,84.789,84.756,11.79857473]
[1772821213648,4.37026735,84.78,84.756,11.79857473]
[1772821214349,4.37026735,84.78,84.755,0.5]
[1772821214848,4.37026735,84.78,84.755,12.29859441]
[1772821215042,4.37026735,84.78,84.741,11.80066319]
[1772821215344,11.79676532,84.769,84.734,0.5]
[1772821215745,11.79537385,84.779,84.734,0.5]
[1772821216542,4.37026735,84.77,84.734,0.5]
[1772821216727,41.28380848,84.779,84.734,0.5]
[1772821218539,5.2512604,84.789,84.736,0.5]
[1772821219345,4.37026735,84.78,84.736,0.5]
[1772821220148,41.27650541,84.794,84.738,0.5]
[1772821220346,4.37026735,84.79,84.738,0.5]
[1772821220745,11.79398271,84.789,84.74,0.5]
[1772821221933,41.27893948,84.789,84.74,0.5]
[1772821224050,4.37026735,84.8,84.745,0.5]
[1772821224255,4.37026735,84.8,84.741,41.44448275]
[1772821224256,4.37026735,84.79,84.747,0.5]
[1772821224432,4.37026735,84.78,84.747,0.5]
[1772821226348,41.28380848,84.779,84.745,11.80003857]
[1772821227862,41.28380848,84.779,84.742,0.5]
[1772821228243,11.79537385,84.779,84.742,0.5]
[1772821228668,41.28380848,84.779,84.742,0.5]
[1772821228960,4.37026735,84.77,84.742,0.5]
[1772821229335,41.28380848,84.779,84.742,0.5]
[1772821229860,4.37026735,84.75,84.723,0.5]
[1772821230057,4.37026735,84.74,84.708,0.5]
[1772821230259,4.37026735,84.75,84.708,0.5]
[1772821230562,4.37026735,84.74,84.708,0.5]
[1772821230866,4.37026735,84.73,84.708,0.5]
[1772821231046,4.82477569,84.755,84.708,0.5]
[1772821231047,4.37026735,84.74,84.708,0.5]
[1772821231363,4.37026735,84.73,84.708,0.5]
[1772821231683,4.37026735,84.73,84.701,0.5]
[1772821231865,4.37026735,84.72,84.695,11.80706222]
[1772821232761,41.30085905,84.744,84.698,28.8217336]
[1772821232762,4.37026735,84.73,84.698,28.8217336]
[1772821233750,4.37026735,84.74,84.699,0.5]
[1772821234068,4.37026735,84.73,84.701,0.5]
[1772821234555,41.30329599,84.739,84.701,0.5]
[1772821234556,11.80094171,84.739,84.701,0.5]
[1772821234746,41.30329599,84.739,84.701,0.5]
[1772821235561,4.37026735,84.73,84.701,0.5]
[1772821238265,11.8023345,84.729,84.703,0.5]
[1772821238567,11.80108097,84.738,84.703,0.5]
[1772821239446,4.37026735,84.76,84.705,0.5]
[1772821239647,4.37026735,84.76,84.707,0.5]
[1772821240067,33.1849024,84.772,84.707,0.5]
[1772821240365,4.37026735,84.76,84.709,0.5]
[1772821240578,11.79551298,84.778,84.712,0.5]
[1772821240876,11.79551298,84.778,84.719,0.14216157]
[1772821241075,11.79551298,84.778,84.712,0.28432314]
[1772821241076,11.79483698,84.783,84.732,0.5]
[1772821241252,11.79483698,84.783,84.738,0.5]
[1772821242765,11.79483698,84.783,84.74,0.5]
[1772821243776,4.37026735,84.79,84.74,0.5]
[1772821243952,4.37026735,84.75,84.722,0.5]
[1772821244155,4.37026735,84.76,84.722,0.5]
[1772821244566,4.37026735,84.77,84.725,0.14216157]
[1772821244767,11.79676532,84.769,84.728,0.5]
[1772821245654,41.28867863,84.769,84.728,0.5]
[1772821245866,4.37026735,84.76,84.728,0.5]
[1772821246267,41.28867863,84.769,84.728,0.5]
[1772821246659,4.37026735,84.76,84.728,0.5]
[1772821247360,4.37026735,84.74,84.712,11.80470299]
[1772821247575,4.37026735,84.75,84.713,0.5]
[1772821247971,11.79676532,84.769,84.715,0.5]
[1772821248279,4.82477569,84.777,84.725,0.5]
[1772821248580,4.37026735,84.77,84.725,0.5]
[1772821248779,41.28429544,84.778,84.727,0.5]
[1772821249377,41.28429544,84.778,84.719,0.14216157]
[1772821249378,41.28429544,84.778,84.729,0.5]
[1772821249774,4.37026735,84.76,84.729,0.5]
[1772821250362,4.37026735,84.75,84.728,11.80247379]
[1772821250675,4.37026735,84.76,84.728,12.30247379]
[1772821250983,4.37026735,84.76,84.729,0.5]
[1772821251463,11.79815712,84.759,84.731,0.5]
[1772821251980,41.29354993,84.759,84.731,0.5]
[1772821252156,4.37026735,84.75,84.726,0.5]
[1772821252778,4.37026735,84.74,84.687,0.5]
[1772821252980,4.37026735,84.73,84.688,0.5]
[1772821253677,11.8023345,84.729,84.69,0.5]
[1772821254476,4.37026735,84.75,84.691,0.5]
[1772821254682,4.37026735,84.75,84.699,0.5]
[1772821254878,4.37026735,84.75,84.707,0.5]
[1772821256286,4.37026735,84.76,84.709,0.5]
[1772821256479,10.93718358,84.76,84.709,0.5]
[1772821257166,29.49217549,84.769,84.712,0.14216157]
[1772821257367,29.49217549,84.769,84.717,0.5]
[1772821258280,29.49217549,84.769,84.719,0.5]
[1772821258281,41.28894081,84.769,84.719,0.5]
[1772821260591,41.28894081,84.769,84.721,0.5]
[1772821261305,10.93718358,84.75,84.721,0.5]
[1772821261471,10.93718358,84.76,84.721,0.5]
[1772821262989,41.29354993,84.759,84.721,0.5]
[1772821263172,0.4988161,84.739,84.695,0.28432314]
[1772821263666,0.4988161,84.758,84.695,0.28432314]
[1772821264282,0.4988161,84.749,84.695,0.28432314]
[1772821265081,11.79968848,84.748,84.698,0.7359224]
[1772821265397,11.79968848,84.748,84.699,0.45159926]
[1772821266070,0.4988161,84.749,84.699,0.45159926]
[1772821266268,11.79900282,84.753,84.699,0.45159926]
[1772821266489,0.4988161,84.749,84.699,0.45159926]
[1772821267274,0.4988161,84.747,84.702,0.45159926]
[1772821267591,0.4988161,84.739,84.708,0.45159926]
[1772821269494,0.4988161,84.739,84.689,0.14216157]
[1772821269495,0.4988161,84.739,84.71,0.45159926]
[1772821269794,11.80045204,84.743,84.71,0.45159926]
[1772821270098,0.4988161,84.742,84.71,0.45159926]
[1772821271498,0.4988161,84.739,84.711,11.80484234]
[1772821272291,0.4988161,84.739,84.711,12.2564416]
[1772821272489,0.4988161,84.739,84.711,0.45159926]
[1772821273782,11.80108097,84.738,84.712,0.45159926]
[1772821273982,0.4988161,84.739,84.712,0.45159926]
[1772821274696,12.29980416,84.739,84.712,0.45159926]
[1772821274901,0.4988161,84.738,84.712,0.45159926]
[1772821276395,0.4988161,84.738,84.713,11.80456364]
[1772821276601,0.4988161,84.738,84.704,0.45159926]
[1772821276905,0.4988161,84.738,84.644,47.25666765]
[1772821276906,0.4988161,84.729,84.703,11.80588896]
[1772821277601,0.4988161,84.719,84.689,0.45159926]
[1772821278008,100.30805091,84.739,84.689,0.45159926]
[1772821278009,0.4988161,84.73,84.689,0.45159926]
[1772821278390,0.4988161,84.728,84.691,0.45159926]
[1772821279899,0.4988161,84.726,84.693,0.45159926]
[1772821281592,0.4988161,84.719,84.693,0.45159926]
[1772821282184,0.4988161,84.717,84.686,0.45159926]
[1772821283099,11.80315732,84.724,84.686,0.45159926]
[1772821285309,11.8023345,84.729,84.688,0.45159926]
[1772821285507,12.3011506,84.729,84.688,0.45159926]
[1772821285804,0.4988161,84.733,84.688,0.45159926]
[1772821286512,0.4988161,84.729,84.688,0.45159926]
[1772821287412,0.4988161,84.729,84.679,0.14216157]
[1772821287413,11.80247379,84.728,84.69,0.45159926]
[1772821287608,0.4988161,84.738,84.69,0.45159926]
[1772821288113,11.80049694,84.743,84.698,0.45159926]
[1772821288999,12.29931304,84.743,84.698,0.45159926]
[1772821289310,0.4988161,84.742,84.698,0.45159926]
[1772821290425,4.3760018,84.73,84.691,0.45159926]
[1772821291116,0.4988161,84.737,84.691,0.45159926]
[1772821291619,59.27752703,84.756,84.691,0.45159926]
[1772821291620,11.80019936,84.745,84.693,0.45159926]
[1772821291791,11.80019936,84.745,84.695,0.463116]
[1772821291995,0.47508179,84.744,84.697,0.463116]
[1772821292404,11.80038469,84.743,84.699,0.463116]
[1772821293006,0.47508179,84.739,84.699,0.463116]
[1772821294422,11.80038469,84.743,84.701,0.463116]
[1772821295710,0.47508179,84.742,84.703,0.463116]
[1772821297528,0.47508179,84.742,84.689,0.14216157]
[1772821297529,0.47508179,84.756,84.707,0.463116]
[1772821299631,0.47508179,84.756,84.711,0.463116]
[1772821299934,0.69599997,84.765,84.717,0.463116]
[1772821300103,12.49341377,84.765,84.717,0.463116]
[1772821300504,12.96849556,84.765,84.717,0.463116]
[1772821301109,0.47508179,84.779,84.728,0.463116]
[1772821301740,11.79492935,84.783,84.731,0.463116]
[1772821302033,11.79492935,84.783,84.737,0.463116]
[1772821302232,0.47508179,84.782,84.737,0.463116]
[1772821302820,11.79509559,84.781,84.739,0.463116]
[1772821303923,0.47508179,84.78,84.739,0.463116]
[1772821304530,0.47508179,84.779,84.739,0.463116]
[1772821305228,0.47508179,84.769,84.732,0.463116]
[1772821305421,0.47508179,84.759,84.718,0.463116]
[1772821305618,0.47508179,84.759,84.719,0.463116]
[1772821306022,4.3760018,84.77,84.719,0.463116]
[1772821306219,0.47508179,84.766,84.72,0.463116]
[1772821306619,0.47508179,84.766,84.721,0.14216157]
[1772821306826,0.47508179,84.766,84.722,0.463116]
[1772821307738,0.47508179,84.773,84.725,0.463116]
[1772821307937,0.47508179,84.773,84.727,0.463116]
[1772821309714,11.79551298,84.778,84.732,0.463116]
[1772821309933,11.79551298,84.778,84.735,0.14216157]
[1772821310241,11.79551298,84.778,84.738,0.463116]
[1772821310628,11.79506756,84.782,84.738,0.463116]
[1772821310831,0.47508179,84.792,84.748,0.463116]
[1772821312437,0.47508179,84.792,84.752,0.463116]
[1772821312720,0.47508179,84.792,84.758,0.463116]
[1772821313121,12.26878631,84.791,84.758,0.463116]
[1772821314544,0.47508179,84.79,84.76,0.463116]
[1772821317845,0.48444436,84.788,84.762,0.45892325]
[1772821320048,0.48444436,84.794,84.764,0.45892325]
[1772821321627,0.46304769,84.808,84.765,0.47555523]
[1772821321946,0.46304769,84.815,84.767,0.47555523]
[1772821322122,0.46304769,84.815,84.777,0.47555523]
[1772821322320,11.78960854,84.821,84.777,0.47555523]
[1772821322743,12.25265623,84.821,84.777,0.47555523]
[1772821322959,0.46304769,84.819,84.777,0.47555523]
[1772821323127,0.46304769,84.799,84.765,11.797322]
[1772821323744,0.46304769,84.789,84.758,0.47555523]
[1772821324051,0.46304769,84.787,84.759,11.79815712]
[1772821324520,0.46304769,84.787,84.747,0.47555523]
[1772821324720,0.46304769,84.779,84.747,0.47555523]
[1772821324919,0.46304769,84.779,84.746,41.29988436]
[1772821325336,0.46304769,84.779,84.746,41.77543959]
[1772821325646,0.46304769,84.779,84.747,0.47555523]
[1772821326150,0.46304769,84.779,84.746,41.29988436]
[1772821326530,0.46304769,84.777,84.746,29.4999174]
[1772821326727,4.37309753,84.77,84.742,0.47555523]
[1772821326933,0.46304769,84.785,84.744,0.47555523]
[1772821327144,0.46304769,84.785,84.748,0.47555523]
[1772821327447,0.46304769,84.783,84.748,0.47555523]
[1772821329050,0.46304769,84.783,84.75,0.47555523]
[1772821332151,0.46304769,84.79,84.752,0.47555523]
[1772821332655,11.7934735,84.793,84.752,0.47555523]
[1772821333349,11.7934735,84.793,84.73,50.90207666]
[1772821333350,0.46304769,84.779,84.747,0.47555523]
[1772821334061,0.46304769,84.788,84.747,0.47555523]
[1772821334354,11.79400234,84.789,84.749,0.47555523]
[1772821334570,0.46304769,84.788,84.749,0.47555523]
[1772821335461,0.46304769,84.779,84.726,0.47555523]
[1772821335663,0.46304769,84.769,84.728,0.47555523]
[1772821336340,0.46304769,84.767,84.73,0.47555523]
[1772821337153,0.46304769,84.759,84.729,11.8023345]
[1772821337458,0.46304769,84.739,84.709,0.47555523]
[1772821337853,0.46304769,84.739,84.71,8.82423661]
[1772821338351,11.80108097,84.738,84.71,20.153579]
[1772821338535,0.46304769,84.737,84.71,20.153579]
[1772821338729,0.46304769,84.737,84.71,8.34868138]
[1772821338934,0.46304769,84.729,84.71,8.34868138]
[1772821340434,0.46304769,84.727,84.71,8.34868138]
[1772821341562,0.46304769,84.727,84.678,0.42648471]
[1772821341563,0.3,84.719,84.692,0.47555523]
[1772821341735,4.37309753,84.72,84.694,0.47555523]
[1772821341935,0.3,84.727,84.694,0.47555523]
[1772821342433,4.37309753,84.72,84.696,0.47555523]
[1772821342965,0.3,84.719,84.695,11.80707243]
[1772821343164,0.3,84.719,84.696,0.47555523]
[1772821343359,0.3,84.729,84.696,0.47555523]
[1772821344838,12.10247379,84.728,84.698,0.47555523]
[1772821345051,0.3,84.727,84.698,0.47555523]
[1772821346046,0.3,84.719,84.678,0.47555523]
[1772821347565,0.3,84.727,84.68,0.47555523]
[1772821348067,0.3,84.719,84.68,0.47555523]
[1772821348751,0.3,84.726,84.68,0.47555523]
[1772821348948,4.37309753,84.72,84.68,0.47555523]
[1772821349150,4.67309753,84.72,84.68,0.47555523]
[1772821349465,0.3,84.719,84.68,0.47555523]
[1772821350867,4.37309753,84.72,84.668,59.19615181]
[1772821350868,0.3,84.717,84.682,0.47555523]
[1772821351864,0.3,84.709,84.681,11.80902445]
[1772821352065,4.37309753,84.69,84.668,0.4523311]
[1772821352244,0.3,84.701,84.668,0.4523311]
[1772821352763,16.47947297,84.7,84.67,0.4523311]
[1772821353354,11.80586685,84.704,84.67,0.4523311]
[1772821353862,0.3,84.708,84.67,0.4523311]
[1772821354070,0.3,84.715,84.67,0.4523311]
[1772821354274,166.5,84.834,84.67,0.4523311]
[1772821354275,0.3,84.719,84.67,0.4523311]
[1772821354565,0.3,84.709,84.67,0.4523311]
[1772821354767,0.3,84.709,84.672,0.4523311]
[1772821356166,0.3,84.709,84.674,0.4523311]
[1772821356368,11.80502821,84.71,84.674,0.4523311]
[1772821356562,0.3,84.717,84.674,0.4523311]
[1772821356768,0.3,84.734,84.678,0.4523311]
[1772821356963,12.10167199,84.734,84.688,0.4523311]
[1772821358360,11.80111656,84.738,84.69,0.4523311]
[1772821359357,4.37309753,84.74,84.69,0.4523311]
[1772821359553,12.10059147,84.742,84.695,0.14216157]
[1772821359864,0.3,84.742,84.698,0.4523311]
[1772821360255,11.80066319,84.741,84.698,0.4523311]
[1772821360682,11.80066319,84.741,84.7,0.4523311]
[1772821360856,0.3,84.74,84.7,0.4523311]
[1772821361874,0.3,84.739,84.7,0.4523311]
[1772821362885,0.3,84.739,84.702,0.4523311]
[1772821363081,11.79999714,84.746,84.702,0.4523311]
[1772821363377,7.6766412,84.75,84.704,0.4523311]
[1772821363561,11.79954925,84.749,84.708,0.4523311]
[1772821364256,0.3,84.748,84.708,0.4523311]
[1772821364480,0.3,84.739,84.708,0.4523311]
[1772821364678,0.3,84.739,84.702,0.4523311]
[1772821365064,0.3,84.729,84.702,11.80609666]
[1772821365264,0.3,84.729,84.703,0.4523311]
[1772821365560,0.3,84.729,84.691,11.80763009]
[1772821365778,0.3,84.729,84.692,0.4523311]
[1772821366760,11.80247379,84.728,84.693,11.80735125]
[1772821366960,0.3,84.727,84.694,0.4523311]
[1772821368188,0.3,84.735,84.694,0.4523311]
[1772821368697,0.3,84.719,84.694,0.4523311]
[1772821368890,0.3,84.734,84.696,0.4523311]
[1772821370479,0.3,84.729,84.696,0.4523311]
[1772821371076,0.3,84.729,84.678,0.42648471]
[1772821371077,11.8011016,84.738,84.698,0.4523311]
[1772821371464,0.3,84.729,84.698,0.4523311]
[1772821371683,0.3,84.729,84.693,11.8072796]
[1772821371979,0.3,84.719,84.693,11.8072796]
[1772821373478,0.3,84.717,84.693,11.8072796]
[1772821374082,0.3,84.717,84.681,0.4523311]
[1772821374265,0.3,84.709,84.681,11.80902445]